fUSD/lending_fUSD_20260228
["ID","MTS","AMOUNT","RATE_DAILY","PERIOD"]
[406929426,1772286640509,-500.0,0.00013191,2]
[406929427,1772286640523,-500.0,0.00013191,2]
[406929428,1772286640534,-500.0,0.00013191,2]
[406929429,1772286640545,-500.0,0.00013191,2]
[406929430,1772286640556,-500.0,0.00013191,2]
[406929431,1772286640567,-500.0,0.00013191,2]
[406929432,1772286640578,-500.0,0.00013191,2]
[406929433,1772286640587,-500.0,0.00013191,2]
[406929434,1772286640598,-151.0,0.00013191,2]
[406929435,1772286640608,-151.0,0.00013191,2]
[406929436,1772286640617,-151.0,0.00013191,2]
[406929437,1772286640627,-151.0,0.00013191,2]
[406929438,1772286640636,-151.0,0.00013191,2]
[406929439,1772286640646,-151.0,0.00013191,2]
[406929440,1772286640655,-151.0,0.00013191,2]
[406929441,1772286640664,-151.0,0.00013191,2]
[406929442,1772286640673,-151.0,0.00013191,2]
[406929443,1772286640682,-151.0,0.00013191,2]
[406929444,1772286640691,-151.0,0.00013191,2]
[406929445,1772286640701,-151.0,0.00013191,2]
[406929446,1772286640710,-500.0,0.00013195,2]
[406929447,1772286640719,-150.99,0.00013198,2]
[406929448,1772286640729,-3674.39,0.00013198,2]
[406929449,1772286640738,-2987.78,0.00013198,2]
[406929450,1772286640747,-4568.2,0.00013198,2]
[406929451,1772286640756,-150.99,0.00013198,2]
[406929452,1772286640769,-9999.99,0.00013198,2]
[406929453,1772286640778,-348.57,0.00013198,2]
[406929454,1772286640788,-299.99,0.00013198,2]
[406929455,1772286640797,-1543.68,0.00013198,2]
[406929456,1772286640812,-350.01,0.00013198,2]
[406929457,1772286640834,-5562.57052734,0.00013208,2]
[406929458,1772286640856,-32888.5933,0.00013308,2]
[406929459,1772286640870,-1000.0,0.00013308,2]
[406929460,1772286640880,-2096.8016874,0.00013435,3]
[406929461,1772286640892,-2068.94365586,0.00013435,3]
[406929462,1772286640901,-300.0,0.000135,2]
[406929463,1772286640911,-20182.76517958,0.0001364,2]
[406929464,1772286640923,-150.0,0.00013671,2]
[406929465,1772286640932,-150.0,0.00013671,2]
[406929466,1772286640942,-500.0,0.00013698,2]
[406929467,1772286640953,-500.0,0.00013698,2]
[406929468,1772286640964,-500.0,0.00013698,2]
[406929469,1772286640974,-500.0,0.00013698,2]
[406929470,1772286640985,-500.0,0.00013698,2]
[406929471,1772286640997,-500.0,0.00013698,2]
[406929472,1772286641008,-500.0,0.00013698,2]
[406929473,1772286641019,-500.0,0.00013698,2]
[406929474,1772286641028,-500.0,0.00013698,2]
[406929475,1772286641038,-500.0,0.00013698,2]
[406929476,1772286641047,-500.0,0.00013698,2]
[406929477,1772286641059,-500.0,0.00013698,2]
[406929478,1772286641068,-500.0,0.00013698,2]
[406929479,1772286641078,-500.0,0.00013698,2]
[406929480,1772286641089,-500.0,0.00013698,2]
[406929481,1772286641100,-500.0,0.00013698,2]
[406929482,1772286641110,-500.0,0.00013698,2]
[406929483,1772286641121,-500.0,0.00013698,2]
[406929484,1772286641132,-500.0,0.00013698,2]
[406929485,1772286641144,-500.0,0.00013698,2]
[406929486,1772286641155,-500.0,0.00013698,2]
[406929487,1772286641167,-500.0,0.00013698,2]
[406929488,1772286641176,-500.0,0.00013698,2]
[406929489,1772286641187,-595.16967246,0.00013698,2]
[406929490,1772286641198,-500.0,0.00013698,2]
[406929491,1772286641209,-624.58042463,0.00013698,2]
[406929492,1772286641219,-500.0,0.00013698,2]
[406929493,1772286641230,-500.0,0.00013698,2]
[406929494,1772286641240,-500.0,0.00013698,2]
[406929495,1772286641251,-500.0,0.00013698,2]
[406929496,1772286641266,-500.0,0.00013698,2]
[406929497,1772286641277,-500.0,0.00013698,2]
[406929498,1772286641287,-500.0,0.00013698,2]
[406929499,1772286641297,-500.0,0.00013698,2]
[406929500,1772286641306,-500.0,0.00013698,2]
[406929501,1772286641315,-500.0,0.00013698,2]
[406929502,1772286641324,-500.0,0.00013698,2]
[406929503,1772286641334,-500.0,0.00013698,2]
[406929504,1772286641343,-500.0,0.00013698,2]
[406929505,1772286641353,-500.0,0.00013698,2]
[406929506,1772286641362,-500.0,0.00013698,2]
[406929507,1772286641372,-500.0,0.00013698,2]
[406929508,1772286641381,-500.0,0.00013698,2]
[406929509,1772286641391,-500.0,0.00013698,2]
[406929510,1772286641400,-500.0,0.00013698,2]
[406929511,1772286641410,-393.27599865,0.00013698,2]
[406929512,1772286641419,-500.0,0.00013698,2]
[406929513,1772286641428,-500.0,0.00013698,2]
[406929514,1772286641437,-500.0,0.00013698,2]
[406929515,1772286641447,-500.0,0.00013698,2]
[406929516,1772286641456,-500.0,0.00013698,2]
[406929517,1772286641465,-500.0,0.00013698,2]
[406929518,1772286641475,-500.0,0.00013698,2]
[406929519,1772286641484,-500.0,0.00013698,2]
[406929520,1772286641493,-500.0,0.00013698,2]
[406929521,1772286641502,-500.0,0.00013698,2]
[406929522,1772286641519,-500.0,0.00013698,2]
[406929523,1772286641529,-500.0,0.00013698,2]
[406929524,1772286641538,-500.0,0.00013698,2]
[406929525,1772286641548,-500.0,0.00013698,2]
[406929526,1772286641558,-500.0,0.00013698,2]
[406929527,1772286641567,-500.0,0.00013698,2]
[406929528,1772286641576,-500.0,0.00013698,2]
[406929529,1772286641586,-500.0,0.00013698,2]
[406929530,1772286641595,-500.0,0.00013698,2]
[406929531,1772286641604,-500.0,0.00013698,2]
[406929532,1772286641614,-500.0,0.00013698,2]
[406929533,1772286641622,-500.0,0.00013698,2]
[406929534,1772286641632,-500.0,0.00013698,2]
[406929535,1772286641642,-500.0,0.00013698,2]
[406929536,1772286641651,-500.0,0.00013698,2]
[406929537,1772286641660,-500.0,0.00013698,2]
[406929538,1772286641670,-500.0,0.00013698,2]
[406929539,1772286641679,-439.79063626,0.00013698,2]
[406929540,1772286641697,-601.46010123,0.00013698,2]
[406929541,1772286641706,-500.0,0.00013698,2]
[406929542,1772286641715,-500.0,0.00013698,2]
[406929543,1772286641725,-500.0,0.00013698,2]
[406929544,1772286641742,-500.0,0.00013698,2]
[406929545,1772286641764,-161.88293327,0.00013698,2]
[406929546,1772286641783,-500.0,0.00013698,2]
[406929547,1772286641804,-500.0,0.00013698,2]
[406929548,1772286641825,-500.0,0.00013698,2]
[406929549,1772286641845,-500.0,0.00013698,2]
[406929550,1772286641859,-500.0,0.00013698,2]
[406929551,1772286641872,-500.0,0.00013698,2]
[406929552,1772286641883,-500.0,0.00013698,2]
[406929553,1772286641897,-329.64340271,0.00013698,2]
[406929554,1772286641906,-500.0,0.00013698,2]
[406929555,1772286641919,-500.0,0.00013698,2]
[406929556,1772286641929,-500.0,0.00013698,2]
[406929557,1772286641940,-500.0,0.00013698,2]
[406929558,1772286641953,-500.0,0.00013698,2]
[406929559,1772286641964,-500.0,0.00013698,2]
[406929560,1772286641975,-500.0,0.00013698,2]
[406929561,1772286641989,-500.0,0.00013698,2]
[406929562,1772286642001,-500.0,0.00013698,2]
[406929563,1772286642017,-500.0,0.00013698,2]
[406929564,1772286642029,-897.04,0.00013698,2]
[406929565,1772286642041,-897.04,0.00013698,2]
[406929566,1772286642052,-500.0,0.00013698,2]
[406929567,1772286642067,-897.04,0.00013698,2]
[406929568,1772286642078,-440.49444221,0.00013698,2]
[406929569,1772286642089,-897.04,0.00013698,2]
[406929570,1772286642100,-897.04,0.00013698,2]
[406929571,1772286642114,-897.04,0.00013698,2]
[406929572,1772286642128,-897.04,0.00013698,2]
[406929573,1772286642139,-897.04,0.00013698,2]
[406929574,1772286642157,-897.04,0.00013698,2]
[406929575,1772286642178,-897.04,0.00013698,2]
[406929576,1772286642197,-897.04,0.00013698,2]
[406929577,1772286642211,-500.0,0.00013698,2]
[406929578,1772286642223,-500.0,0.00013698,2]
[406929579,1772286642243,-500.0,0.00013698,2]
[406929580,1772286642266,-500.0,0.00013698,2]
[406929581,1772286642287,-500.0,0.00013698,2]
[406929582,1772286642309,-500.0,0.00013698,2]
[406929583,1772286642330,-500.0,0.00013698,2]
[406929584,1772286642352,-500.0,0.00013698,2]
[406929585,1772286642373,-500.0,0.00013698,2]
[406929586,1772286642392,-512.80115338,0.00013698,2]
[406929587,1772286642408,-500.0,0.00013698,2]
[406929588,1772286642420,-500.0,0.00013698,2]
[406929589,1772286642432,-500.0,0.00013698,2]
[406929590,1772286642445,-500.0,0.00013698,2]
[406929591,1772286642458,-500.0,0.00013698,2]
[406929592,1772286642473,-500.0,0.00013698,2]
[406929593,1772286642487,-500.0,0.00013698,2]
[406929594,1772286642500,-500.0,0.00013698,2]
[406929595,1772286642515,-500.0,0.00013698,2]
[406929596,1772286642527,-508.5684283,0.00013698,2]
[406929597,1772286642537,-500.0,0.00013698,2]
[406929598,1772286642547,-500.0,0.00013698,2]
[406929599,1772286642559,-500.0,0.00013698,2]
[406929600,1772286642569,-500.0,0.00013698,2]
[406929601,1772286642578,-500.0,0.00013698,2]
[406929602,1772286642590,-500.0,0.00013698,2]
[406929603,1772286642601,-500.0,0.00013698,2]
[406929604,1772286642613,-500.0,0.00013698,2]
[406929605,1772286642622,-500.0,0.00013698,2]
[406929606,1772286642636,-500.0,0.00013698,2]
[406929607,1772286642646,-500.0,0.00013698,2]
[406929608,1772286642659,-500.0,0.00013698,2]
[406929609,1772286642671,-500.0,0.00013698,2]
[406929610,1772286642681,-500.0,0.00013698,2]
[406929611,1772286642694,-500.0,0.00013698,2]
[406929612,1772286642705,-219.67514616,0.00013698,2]
[406929613,1772286642714,-876.96,0.00013698,2]
[406929614,1772286642725,-876.96,0.00013698,2]
[406929615,1772286642735,-876.96,0.00013698,2]
[406929616,1772286642745,-876.96,0.00013698,2]
[406929617,1772286642754,-876.96,0.00013698,2]
[406929618,1772286642765,-876.96,0.00013698,2]
[406929619,1772286642774,-876.96,0.00013698,2]
[406929620,1772286642783,-876.96,0.00013698,2]
[406929621,1772286642793,-876.96,0.00013698,2]
[406929622,1772286642803,-876.96,0.00013698,2]
[406929623,1772286642812,-876.96,0.00013698,2]
[406929624,1772286642821,-500.0,0.00013698,2]
[406929625,1772286642830,-500.0,0.00013698,2]
[406929626,1772286642839,-500.0,0.00013698,2]
[406929627,1772286642851,-500.0,0.00013698,2]
[406929628,1772286642861,-270.1160722,0.00013698,2]
[406929629,1772286642870,-843.23,0.00013699,2]
[406929630,1772286642882,-915.2,0.00013699,2]
[406929631,1772286642891,-9999.99,0.00013699,2]
[406929632,1772286642900,-29999.99,0.00013699,2]
[406929633,1772286642909,-288.1281186,0.00013726,2]
[406929634,1772286642921,-500.0,0.00013791,2]
[406929635,1772286642930,-876.96,0.00013791,2]
[406929636,1772286642940,-1800.0,0.000138,2]
[406929637,1772286642949,-843.93369988,0.00013802,2]
[406929638,1772286642958,-2914.07,0.0001389,2]
[406929639,1772286642967,-540.93519323,0.00013906,2]
[406929640,1772286642977,-500.0,0.00013908,2]
[406929641,1772286642986,-500.0,0.00013908,2]
[406929642,1772286642996,-500.0,0.00013908,2]
[406929643,1772286643006,-279.65230115,0.00013908,2]
[406929644,1772286643016,-163.84904206,0.00013908,2]
[406929645,1772286643026,-621.2419277,0.00013908,2]
[406929646,1772286643035,-500.0,0.00013908,2]
[406929647,1772286643044,-500.0,0.00013908,2]
[406929649,1772286643054,-500.0,0.00013908,2]
[406929650,1772286643063,-500.0,0.00013908,2]
[406929651,1772286643073,-500.0,0.00013908,2]
[406929652,1772286643082,-500.0,0.00013908,2]
[406929653,1772286643092,-500.0,0.00013908,2]
[406929654,1772286643101,-164.07470798,0.00013908,2]
[406929655,1772286643110,-500.0,0.00013908,2]
[406929656,1772286643119,-160.97258953,0.00013908,2]
[406929657,1772286643128,-500.0,0.00013908,2]
[406929658,1772286643138,-500.0,0.00013908,2]
[406929659,1772286643147,-500.0,0.00013908,2]
[406929660,1772286643156,-500.0,0.00013908,2]
[406929661,1772286643166,-500.0,0.00013908,2]
[406929662,1772286643175,-161.20397096,0.00013908,2]
[406929663,1772286643185,-500.0,0.00013908,2]
[406929664,1772286643194,-500.0,0.00013908,2]
[406929665,1772286643203,-500.0,0.00013908,2]
[406929666,1772286643213,-500.0,0.00013908,2]
[406929667,1772286643222,-335.80836064,0.00013908,2]
[406929668,1772286643355,-500.0,0.00013908,2]
[406929669,1772286643365,-308.79336882,0.00013908,2]
[406929670,1772286643375,-500.0,0.00013908,2]
[406929671,1772286643384,-500.0,0.00013908,2]
[406929672,1772286643394,-500.0,0.00013908,2]
[406929673,1772286643415,-500.0,0.00013908,2]
[406929674,1772286643425,-500.0,0.00013908,2]
[406929675,1772286643435,-500.0,0.00013908,2]
[406929676,1772286643445,-500.0,0.00013908,2]
[406929677,1772286643455,-209.76903842,0.00013908,2]
[406929678,1772286643464,-337.91550103,0.00013908,2]
[406929679,1772286643475,-164.35592024,0.00013908,2]
[406929680,1772286643484,-500.0,0.00013908,2]
[406929681,1772286643494,-500.0,0.00013908,2]
[406929682,1772286643504,-500.0,0.00013908,2]
[406929683,1772286643516,-500.0,0.00013908,2]
[406929684,1772286643525,-500.0,0.00013908,2]
[406929685,1772286643535,-160.28869668,0.00013908,2]
[406929686,1772286643545,-500.0,0.00013908,2]
[406929687,1772286643555,-500.0,0.00013908,2]
[406929688,1772286643565,-500.0,0.00013908,2]
[406929689,1772286643576,-500.0,0.00013908,2]
[406929690,1772286643586,-500.0,0.00013908,2]
[406929691,1772286643595,-500.0,0.00013908,2]
[406929692,1772286643605,-500.0,0.00013908,2]
[406929693,1772286643614,-500.0,0.00013908,2]
[406929694,1772286643623,-524.57437487,0.00013908,2]
[406929695,1772286643632,-500.0,0.00013908,2]
[406929696,1772286643642,-162.16281507,0.00013908,2]
[406929697,1772286643651,-500.0,0.00013908,2]
[406929698,1772286643661,-500.0,0.00013908,2]
[406929699,1772286643670,-500.0,0.00013908,2]
[406929700,1772286643680,-500.0,0.00013908,2]
[406929701,1772286643690,-500.0,0.00013908,2]
[406929702,1772286643699,-500.0,0.00013908,2]
[406929703,1772286643708,-500.0,0.00013908,2]
[406929704,1772286643718,-500.0,0.00013908,2]
[406929705,1772286643728,-310.96112452,0.00013908,2]
[406929706,1772286643737,-500.0,0.00013908,2]
[406929707,1772286643747,-500.0,0.00013908,2]
[406929708,1772286643756,-150.0,0.00013926,2]
[406929709,1772286643767,-5059.87244176,0.0001408,2]
[406929710,1772286643778,-512.0,0.0001411,2]
[406929711,1772286643787,-6821.22,0.00014118,2]
[406929712,1772286643797,-4284.77493622,0.00014165,2]
[406929713,1772286643807,-20182.76517958,0.00014172,2]
[406929714,1772286643817,-166.66,0.00014211,2]
[406929715,1772286643827,-500.0,0.00014328,2]
[406929716,1772286643839,-500.0,0.00014328,2]
[406929717,1772286643848,-500.0,0.00014328,2]
[406929718,1772286643858,-500.0,0.00014408,2]
[406929719,1772286643868,-500.0,0.00014408,2]
[406929720,1772286643879,-897.04,0.00014408,2]
[406929721,1772286643889,-1009.56822593,0.00014456,2]
[406929722,1772286643898,-1000.0,0.00014456,2]
[406929723,1772286643907,-1000.0,0.00014456,2]
[406929724,1772286643918,-1001.25349418,0.00014456,2]
[406929725,1772286643927,-1000.0,0.00014456,2]
[406929726,1772286643936,-1000.0,0.00014456,2]
[406929727,1772286643946,-1000.0,0.00014456,2]
[406929728,1772286643955,-1000.0,0.00014456,2]
[406929729,1772286643965,-1000.0,0.00014456,2]
[406929730,1772286643974,-1000.0,0.00014456,2]
[406929731,1772286643984,-1000.0,0.00014456,2]
[406929732,1772286643993,-468.68636614,0.00014456,2]
[406929733,1772286644003,-993.55181504,0.00014456,2]
[406929734,1772286644013,-1004.03248552,0.00014456,2]
[406929735,1772286644023,-1000.0,0.00014456,2]
[406929736,1772286644033,-1000.0,0.00014456,2]
[406929737,1772286644042,-1000.0,0.00014456,2]
[406929738,1772286644052,-1000.0,0.00014456,2]
[406929739,1772286644062,-1010.19433144,0.00014456,2]
[406929740,1772286644071,-1000.0,0.00014456,2]
[406929741,1772286644082,-176.28801878,0.00014456,2]
[406929742,1772286644092,-185.91789535,0.00014456,2]
[406929743,1772286644102,-1000.0,0.00014456,2]
[406929744,1772286644111,-604.79723351,0.00014456,2]
[406929745,1772286644121,-1000.0,0.00014456,2]
[406929746,1772286644130,-1000.0,0.00014456,2]
[406929747,1772286644140,-1000.0,0.00014456,2]
[406929748,1772286644149,-1000.0,0.00014456,2]
[406929749,1772286644159,-1000.0,0.00014456,2]
[406929750,1772286644169,-801.08254131,0.00014456,2]
[406929751,1772286644179,-1000.0,0.00014456,2]
[406929752,1772286644188,-1000.0,0.00014456,2]
[406929753,1772286644198,-1000.0,0.00014456,2]
[406929754,1772286644207,-1000.0,0.00014456,2]
[406929755,1772286644217,-1000.0,0.00014456,2]
[406929756,1772286644226,-1000.0,0.00014456,2]
[406929757,1772286644235,-503.10076377,0.00014456,2]
[406929758,1772286644244,-1000.0,0.00014456,2]
[406929759,1772286644254,-1000.0,0.00014456,2]
[406929760,1772286644264,-882.9763382,0.00014456,2]
[406929761,1772286644274,-1000.0,0.00014456,2]
[406929762,1772286644284,-380.87372073,0.00014456,2]
[406929763,1772286644294,-1000.0,0.00014456,2]
[406929764,1772286644303,-352.15203675,0.00014456,2]
[406929765,1772286644313,-1000.0,0.00014456,2]
[406929766,1772286644322,-1000.0,0.00014456,2]
[406929767,1772286644332,-501.70249257,0.00014456,2]
[406929768,1772286644341,-1000.0,0.00014456,2]
[406929769,1772286644350,-1000.0,0.00014456,2]
[406929770,1772286644359,-1000.0,0.00014456,2]
[406929771,1772286644368,-1000.0,0.00014456,2]
[406929772,1772286644377,-1000.0,0.00014456,2]
[406929773,1772286644386,-166.66,0.00014511,2]
[406929774,1772286644394,-151.0,0.00014634,2]
[406929775,1772286644403,-4284.77493622,0.00014699,2]
[406929776,1772286644412,-540.93519323,0.00014705,2]
[406929777,1772286644421,-20182.76517958,0.00014705,2]
[406929778,1772286644430,-1965.0,0.000148,3]
[406929779,1772286644439,-166.66,0.0001481,2]
[406929780,1772286644448,-6821.22,0.00014824,2]
[406929781,1772286644457,-1783.22,0.00014853,2]
[406929782,1772286644466,-10000.0,0.00014859,2]
[406929783,1772286644475,-338.86092418,0.000149,2]
[406929784,1772286644484,-150.0,0.0001493,2]
[406929785,1772286644493,-16303.16,0.00014959,2]
[406929786,1772286644502,-250.0,0.00015,2]
[406929787,1772286644512,-500.0,0.00015003,2]
[406929788,1772286644523,-876.96,0.00015003,2]
[406929789,1772286644532,-1008.05702942,0.00015004,2]
[406929790,1772286644541,-593.78241863,0.00015004,2]
[406929791,1772286644550,-1500.0,0.00015004,2]
[406929792,1772286644558,-1500.0,0.00015004,2]
[406929793,1772286644568,-1500.0,0.00015004,2]
[406929794,1772286644576,-1189.77392428,0.00015004,2]
[406929795,1772286644585,-1000.0,0.00015004,2]
[406929796,1772286644594,-503.90241085,0.00015004,2]
[406929797,1772286644603,-1500.0,0.00015004,2]
[406929798,1772286644613,-1218.82282533,0.00015004,2]
[406929799,1772286644623,-1500.0,0.00015004,2]
[406929800,1772286644631,-1500.0,0.00015004,2]
[406929801,1772286644640,-717.87177273,0.00015004,2]
[406929802,1772286644649,-1500.0,0.00015004,2]
[406929803,1772286644658,-514.6582369,0.00015004,2]
[406929804,1772286644666,-1500.0,0.00015004,2]
[406929805,1772286644676,-1010.16686171,0.00015004,2]
[406929806,1772286644685,-1500.0,0.00015004,2]
[406929807,1772286644694,-1500.0,0.00015004,2]
[406929808,1772286644703,-1500.0,0.00015004,2]
[406929809,1772286644711,-511.98217898,0.00015004,2]
[406929810,1772286644720,-1386.82916028,0.00015004,2]
[406929811,1772286644729,-1008.78545051,0.00015004,2]
[406929812,1772286644738,-1500.0,0.00015004,2]
[406929813,1772286644747,-1500.0,0.00015004,2]
[406929814,1772286644756,-1500.0,0.00015004,2]
[406929815,1772286644767,-1500.0,0.00015004,2]
[406929816,1772286644775,-1000.0,0.00015004,2]
[406929817,1772286644785,-1500.0,0.00015004,2]
[406929818,1772286644794,-1500.0,0.00015004,2]
[406929819,1772286644804,-1500.0,0.00015004,2]
[406929820,1772286644813,-1243.29162459,0.00015004,2]
[406929821,1772286644822,-1500.0,0.00015004,2]
[406929822,1772286644832,-166.66,0.00015109,2]
[406929823,1772286644843,-4284.77493622,0.00015232,2]
[406929824,1772286644853,-20182.76517958,0.00015237,2]
[406929825,1772286644863,-166.66,0.00015408,2]
[406929826,1772286644873,-267.35,0.00015479,2]
[406929827,1772286644884,-540.93519323,0.00015504,2]
[406929828,1772286644894,-317.53143114,0.00015504,2]
[406929829,1772286644903,-1183.24497004,0.00015504,2]
[406929830,1772286644915,-6821.22,0.0001553,2]
[406929831,1772286644924,-2000.0,0.00015552,2]
[406929832,1772286644934,-1432.25528949,0.00015552,2]
[406929833,1772286644944,-2000.0,0.00015552,2]
[406929834,1772286644953,-2000.0,0.00015552,2]
[406929835,1772286644963,-150.13473928,0.00015552,2]
[406929836,1772286644972,-513.9298778,0.00015552,2]
[406929837,1772286644982,-2000.0,0.00015552,2]
[406929838,1772286644992,-2000.0,0.00015552,2]
[406929839,1772286645002,-1500.0,0.00015552,2]
[406929840,1772286645012,-2000.0,0.00015552,2]
[406929841,1772286645022,-1019.35272173,0.00015552,2]
[406929842,1772286645031,-2000.0,0.00015552,2]
[406929843,1772286645041,-2000.0,0.00015552,2]
[406929844,1772286645050,-2118.86499239,0.00015552,2]
[406929845,1772286645060,-1041.26009197,0.00015552,2]
[406929846,1772286645069,-2000.0,0.00015552,2]
[406929847,1772286645078,-2009.53925467,0.00015552,2]
[406929848,1772286645092,-1703.36470484,0.00015552,2]
[406929849,1772286645101,-2000.0,0.00015552,2]
[406929850,1772286645110,-5562.57052734,0.00015554,2]
[406929851,1772286645120,-166.66,0.00015707,2]
[406929852,1772286645129,-4284.77493622,0.00015766,2]
[406929853,1772286645138,-500.0,0.00015769,2]
[406929854,1772286645148,-500.0,0.00015769,2]
[406929855,1772286645158,-897.04,0.00015769,2]
[406929856,1772286645167,-20182.76517958,0.0001577,2]
[406929857,1772286645176,-160.0,0.00015844,2]
[406929858,1772286645186,-174.04581251,0.00015844,2]
[406929859,1772286645195,-500.0,0.00015858,2]
[406929860,1772286645205,-500.0,0.00015858,2]
[406929861,1772286645214,-195.98442162,0.00015858,2]
[406929862,1772286645223,-515.31004766,0.00016099,2]
[406929863,1772286645233,-2500.0,0.00016099,2]
[406929864,1772286645242,-1001.57340438,0.00016099,2]
[406929865,1772286645252,-2500.0,0.00016099,2]
[406929866,1772286645261,-2532.89246011,0.00016099,2]
[406929867,1772286645274,-1712.37829793,0.00016099,2]
[406929868,1772286645283,-2500.0,0.00016099,2]
[406929869,1772286645292,-2550.78546123,0.00016099,2]
[406929870,1772286645302,-2026.23779749,0.00016099,2]
[406929871,1772286645311,-2500.0,0.00016099,2]
[406929872,1772286645320,-9999.99,0.00016116,2]
[406929873,1772286645329,-6821.22,0.00016236,2]
[406929874,1772286645339,-4284.77493622,0.00016299,2]
[406929875,1772286645348,-540.93519323,0.00016302,2]
[406929876,1772286645357,-20182.76517958,0.00016302,2]
[406929877,1772286645367,-1378.0,0.00016438,2]
[406929878,1772286645376,-228.15,0.00016438,2]
[406929879,1772286645385,-266.81662109,0.00016438,2]
[406929880,1772286645394,-1378.0,0.00016493,2]
[406929881,1772286645403,-1378.0,0.00016548,2]
[406929882,1772286645413,-308.99,0.0001659,2]
[406929883,1772286645422,-1378.0,0.00016602,2]
[406929884,1772286645431,-1798.53948142,0.00016647,2]
[406929885,1772286645440,-1990.28139264,0.00016647,2]
[406929886,1772286645452,-279.13777388,0.00016647,2]
[406929888,1772286645461,-3000.0,0.00016647,2]
[406929889,1772286645471,-1378.0,0.00016657,2]
[406929891,1772286645480,-1378.0,0.00016712,2]
[406929895,1772286645490,-167.1,0.00016712,2]
[406929896,1772286645500,-1378.0,0.00016767,2]
[406929897,1772286645509,-2000.0,0.0001681,2]
[406929898,1772286645522,-1378.0,0.00016822,2]
[406929899,1772286645532,-4284.77493622,0.00016833,2]
[406929901,1772286645541,-20182.76517958,0.00016835,2]
[406929902,1772286645551,-1378.0,0.00016876,2]
[406929903,1772286645561,-2000.0,0.0001691,2]
[406929904,1772286645570,-500.0,0.0001693,2]
[406929905,1772286645580,-876.96,0.0001693,2]
[406929906,1772286645590,-1378.0,0.00016931,2]
[406929907,1772286645602,-6821.22,0.00016942,2]
[406929908,1772286645612,-1378.0,0.00016986,2]
[406929909,1772286645621,-300.0,0.00017,2]
[406929910,1772286645631,-2000.0,0.0001701,2]
[406929911,1772286645640,-1378.0,0.00017041,2]
[406929912,1772286645650,-1378.0,0.00017096,2]
[406929913,1772286645659,-500.0,0.00017099,2]
[406929914,1772286645668,-500.0,0.00017099,2]
[406929915,1772286645678,-500.0,0.00017099,2]
[406929916,1772286645688,-500.0,0.00017099,2]
[406929917,1772286645698,-500.0,0.00017099,2]
[406929918,1772286645708,-500.0,0.00017099,2]
[406929919,1772286645718,-500.0,0.00017099,2]
[406929920,1772286645727,-500.0,0.00017099,2]
[406929921,1772286645738,-500.0,0.00017099,2]
[406929922,1772286645747,-500.0,0.00017099,2]
[406929923,1772286645757,-500.0,0.00017099,2]
[406929924,1772286645770,-500.0,0.00017099,2]
[406929925,1772286645780,-500.0,0.00017099,2]
[406929926,1772286645790,-446.84331536,0.00017099,2]
[406929927,1772286645799,-668.65185757,0.00017099,2]
[406929929,1772286645809,-277.35679052,0.00017099,2]
[406929931,1772286645818,-540.93519323,0.00017101,2]
[406929932,1772286645828,-1500.0,0.0001711,2]
[406929933,1772286645840,-1500.0,0.0001711,2]
[406929934,1772286645850,-2632.101218,0.0001711,2]